[Event "GER-ch Blitz 2019"]
[Site "Magdeburg"]
[Date "2019.05.25"]
[Round "24.4"]
[White "Frischmann, Rick"]
[Black "Krause, Benedict"]
[Result "0-1"]
[ECO "B45"]
[WhiteElo "2320"]
[BlackElo "2434"]
[Annotator "NA"]
[PlyCount "96"]
[EventDate "2019.05.25"]
[EventType "tourn"]
[EventCountry "GER"]
[Tiebreak "Number of wins+Number of black wins"]
[SourceTitle "playchess.com"]
[Source "ChessBase"]
[SourceQuality "1"]
[TimeControl "180+2"]

1. e4 {[%emt 0:00:00]} c5 {[%emt 0:00:00]} 2. Nf3 {[%emt 0:00:01]} e6 {[%emt 0:
00:00]} 3. d4 {[%emt 0:00:01]} cxd4 {[%emt 0:00:00]} 4. Nxd4 {[%emt 0:00:01]}
Nc6 {[%emt 0:00:01]} 5. Nc3 {[%emt 0:00:02]} Nf6 {[%emt 0:00:01]} 6. Be3 {
[%emt 0:00:00]} Bb4 {[%emt 0:00:01]} 7. Nxc6 {[%emt 0:00:17]} bxc6 {[%emt 0:00:
01]} 8. e5 {[%emt 0:00:09]} Nd5 {[%emt 0:00:02]} 9. Bd2 {[%emt 0:00:08]} O-O {
[%emt 0:00:06]} 10. Bd3 {[%emt 0:00:05]} Qa5 {[%emt 0:00:43]} 11. O-O {[%emt 0:
01:10]} Nxc3 {[%emt 0:00:04]} 12. bxc3 {[%emt 0:00:01]} Bxc3 {[%emt 0:00:02]}
13. Qh5 {[%emt 0:00:04]} g6 {[%emt 0:00:05]} 14. Bxc3 {[%emt 0:00:01]} Qxc3 {
[%emt 0:00:01]} 15. Qg5 {[%emt 0:00:01]} f6 {[%emt 0:00:12]} 16. exf6 {[%emt 0:
00:02]} Qxf6 {[%emt 0:00:01]} 17. Qxf6 {[%emt 0:00:10]} Rxf6 18. Rab1 Kf8 {
[%emt 0:00:07]} 19. f4 {[%emt 0:00:03]} Ke7 {[%emt 0:00:01]} 20. g3 {[%emt 0:
00:02]} Kd6 {[%emt 0:00:14]} 21. Kf2 {[%emt 0:00:01]} e5 {[%emt 0:00:02]} 22.
Ke3 {[%emt 0:00:01]} exf4+ {[%emt 0:00:01]} 23. gxf4 {[%emt 0:00:01]} Kc7 {
[%emt 0:00:09]} 24. f5 {[%emt 0:00:05]} gxf5 {[%emt 0:00:03]} 25. Rxf5 {
[%emt 0:00:07]} Rh6 {[%emt 0:00:10]} 26. Rf7 {[%emt 0:00:05]} Rxh2 {[%emt 0:00:
03]} 27. Bxh7 {[%emt 0:00:01]} Rb8 {[%emt 0:00:05]} 28. Rd1 {[%emt 0:00:04]}
Rb5 {[%emt 0:00:27]} 29. Bf5 {[%emt 0:00:10]} Re5+ {[%emt 0:00:23]} 30. Kf3 {
[%emt 0:00:38]} Ree2 {[%emt 0:00:03]} 31. Kg3 {[%emt 0:00:10]} Rhg2+ {[%emt 0:
00:01]} 32. Kh3 {[%emt 0:00:08]} Rgf2 {[%emt 0:00:01]} 33. Kg3 {[%emt 0:00:02]}
Kb6 {[%emt 0:00:07]} 34. Rb1+ {[%emt 0:00:06]} Kc7 {[%emt 0:00:02]} 35. Rd1 {
[%emt 0:00:01]} Kb6 {[%emt 0:00:06]} 36. Rb1+ Kc5 37. Rb8 {[%emt 0:00:04]} Ba6
{[%emt 0:00:02]} 38. Rbf8 {[%emt 0:00:02]} d5 {[%emt 0:00:05]} 39. Rxa7 Bc4 {
[%emt 0:00:01]} 40. a4 {[%emt 0:00:06]} Rg2+ {[%emt 0:00:04]} 41. Kf4 {[%emt 0:
00:01]} Ref2+ {[%emt 0:00:01]} 42. Ke5 {[%emt 0:00:03]} Ba2 {[%emt 0:00:06]}
43. a5 {[%emt 0:00:01]} Bb1 {[%emt 0:00:02]} 44. Raa8 {[%emt 0:00:08]} Bxc2 {
[%emt 0:00:02]} 45. Bxc2 {[%emt 0:00:00]} Rxf8 {[%emt 0:00:03]} 46. Rxf8 {
[%emt 0:00:01]} Re2+ {[%emt 0:00:01]} 47. Kf4 {[%emt 0:00:02]} Rf2+ {[%emt 0:
00:02]} 48. Ke3 {[%emt 0:00:02]} Rxf8 {[%emt 0:00:01] Kd4+} 0-1

[Event "GER-ch Blitz 2019"]
[Site "Magdeburg"]
[Date "2019.05.25"]
[Round "24.5"]
[White "Hebbinghaus, Holger"]
[Black "Zuyev, Igor"]
[Result "1/2-1/2"]
[ECO "B20"]
[WhiteElo "2310"]
[BlackElo "2447"]
[Annotator "NA"]
[PlyCount "80"]
[EventDate "2019.05.25"]
[EventType "tourn"]
[EventCountry "GER"]
[Tiebreak "Number of wins+Number of black wins"]
[SourceTitle "playchess.com"]
[Source "ChessBase"]
[SourceQuality "1"]
[TimeControl "180+2"]

1. e4 {[%emt 0:00:00]} c5 {[%emt 0:00:00]} 2. Be2 {[%emt 0:00:00]} Nc6 {
[%emt 0:00:06]} 3. f4 {[%emt 0:00:01]} e5 {[%emt 0:00:05]} 4. d3 {[%emt 0:00:
10]} d5 {[%emt 0:00:06]} 5. exd5 {[%emt 0:00:19]} Qxd5 {[%emt 0:00:04]} 6. Nf3
{[%emt 0:00:08]} exf4 {[%emt 0:00:06]} 7. Bxf4 {[%emt 0:00:04]} Nf6 {[%emt 0:
00:03]} 8. O-O {[%emt 0:00:14]} Be7 {[%emt 0:00:06]} 9. Nc3 {[%emt 0:00:11]}
Qd8 {[%emt 0:00:06]} 10. Kh1 {[%emt 0:00:26]} O-O {[%emt 0:00:05]} 11. Qd2 {
[%emt 0:00:02]} Re8 {[%emt 0:00:06]} 12. Rae1 {[%emt 0:00:02]} a6 {[%emt 0:00:
06]} 13. Ne5 {[%emt 0:00:24]} Nd4 {[%emt 0:00:06]} 14. Bd1 {[%emt 0:00:05]} Bd6
{[%emt 0:00:13]} 15. Nc4 {[%emt 0:00:20]} Rxe1 {[%emt 0:00:07]} 16. Rxe1 {
[%emt 0:00:01]} Bxf4 {[%emt 0:00:06]} 17. Qxf4 {[%emt 0:00:01]} Be6 {[%emt 0:
00:03]} 18. Nd2 {[%emt 0:00:22]} Nd5 {[%emt 0:00:07]} 19. Nxd5 {[%emt 0:00:04]}
Bxd5 {[%emt 0:00:04]} 20. a3 {[%emt 0:00:10]} Ne6 {[%emt 0:00:06]} 21. Qg3 {
[%emt 0:00:03]} Qf6 {[%emt 0:00:09]} 22. c3 {[%emt 0:00:03]} Rd8 {[%emt 0:00:
06]} 23. Bb3 {[%emt 0:00:13]} Bxb3 {[%emt 0:00:08]} 24. Nxb3 {[%emt 0:00:01]}
Qf5 {[%emt 0:00:03]} 25. Nc1 {[%emt 0:00:03]} b5 {[%emt 0:00:07]} 26. Kg1 {
[%emt 0:00:02]} Qd5 {[%emt 0:00:13]} 27. Qe5 {[%emt 0:00:04]} Qc6 {[%emt 0:00:
07]} 28. Rd1 {[%emt 0:00:05]} a5 {[%emt 0:00:05]} 29. Re1 {[%emt 0:00:04]} h6 {
[%emt 0:00:06]} 30. Qe4 {[%emt 0:00:01]} Qc7 {[%emt 0:00:07]} 31. Qe5 {[%emt 0:
00:01]} Qe7 {[%emt 0:00:05]} 32. Qe4 {[%emt 0:00:08]} Qc7 {[%emt 0:00:07]} 33.
Qe5 {[%emt 0:00:00]} Rd6 {[%emt 0:00:08]} 34. Qe4 {[%emt 0:00:05]} a4 {[%emt 0:
00:05]} 35. Ne2 {[%emt 0:00:04]} Qd8 {[%emt 0:00:08]} 36. Nc1 {[%emt 0:00:01]}
Qd7 {[%emt 0:00:06]} 37. Qe3 {[%emt 0:00:02]} Kh7 {[%emt 0:00:07]} 38. Qe4+ {
[%emt 0:00:01]} g6 {[%emt 0:00:05]} 39. Qe5 {[%emt 0:00:02]} Rd5 {[%emt 0:00:
05]} 40. Qe4 {[%emt 0:00:01]} Qd6 {[%emt 0:00:07]} 1/2-1/2

[Event "GER-ch Blitz 2019"]
[Site "Magdeburg"]
[Date "2019.05.25"]
[Round "24.6"]
[White "Stein, Robert"]
[Black "Barzen, Pascal"]
[Result "1-0"]
[ECO "A40"]
[WhiteElo "2318"]
[BlackElo "2292"]
[Annotator "NA"]
[PlyCount "89"]
[EventDate "2019.05.25"]
[EventType "tourn"]
[EventCountry "GER"]
[Tiebreak "Number of wins+Number of black wins"]
[SourceTitle "playchess.com"]
[Source "ChessBase"]
[SourceQuality "1"]
[TimeControl "180+2"]

1. d4 {[%emt 0:00:00]} Nf6 2. c4 e6 {[%emt 0:00:02]} 3. g3 {[%emt 0:00:04]}
Bb4+ {[%emt 0:00:02]} 4. Bd2 {[%emt 0:00:02]} Be7 {[%emt 0:00:02]} 5. Bg2 d5 6.
Nf3 {[%emt 0:00:04]} O-O {[%emt 0:00:04]} 7. Qc2 {[%emt 0:00:02]} c6 {[%emt 0:
00:02]} 8. O-O {[%emt 0:00:02]} b6 {[%emt 0:00:02]} 9. Bf4 {[%emt 0:00:02]} Bb7
{[%emt 0:00:02]} 10. Nbd2 {[%emt 0:00:02]} Nbd7 {[%emt 0:00:02]} 11. e4 {
[%emt 0:00:02]} Rc8 {[%emt 0:00:02]} 12. e5 {[%emt 0:00:02]} Ne8 {[%emt 0:00:
02]} 13. cxd5 {[%emt 0:00:02]} cxd5 {[%emt 0:00:02]} 14. Qd3 {[%emt 0:00:02]}
Nc7 {[%emt 0:00:02]} 15. Rfc1 {[%emt 0:00:02]} Ba6 {[%emt 0:00:02]} 16. Qe3 {
[%emt 0:00:02]} b5 {[%emt 0:00:02]} 17. h4 {[%emt 0:00:02]} b4 {[%emt 0:00:02]}
18. Nf1 {[%emt 0:00:02]} Nb6 {[%emt 0:00:02]} 19. b3 {[%emt 0:00:02]} Nb5 {
[%emt 0:00:02]} 20. Rxc8 {[%emt 0:00:11]} Qxc8 {[%emt 0:00:02]} 21. Bg5 {
[%emt 0:00:05]} Qd7 {[%emt 0:00:05]} 22. N1h2 {[%emt 0:00:12]} Nc3 {[%emt 0:00:
05]} 23. Ng4 {[%emt 0:00:05]} Ne4 {[%emt 0:00:11]} 24. Bxe7 {[%emt 0:00:13]}
Qxe7 {[%emt 0:00:01]} 25. Ng5 {[%emt 0:00:01]} Nxg5 {[%emt 0:00:14]} 26. hxg5 {
[%emt 0:00:02]} Rc8 {[%emt 0:00:16]} 27. Bf3 {[%emt 0:00:01]} Nd7 {[%emt 0:00:
11]} 28. Kg2 {[%emt 0:00:05]} Rc3 {[%emt 0:00:15]} 29. Qf4 {[%emt 0:00:01]} Bd3
{[%emt 0:00:02]} 30. Rh1 {[%emt 0:00:08]} Bf5 {[%emt 0:00:05]} 31. Ne3 {
[%emt 0:00:29]} Bg6 {[%emt 0:00:03]} 32. Bh5 {[%emt 0:00:51]} Be4+ {[%emt 0:00:
27]} 33. Bf3 {[%emt 0:00:01]} Bg6 {[%emt 0:00:06]} 34. Bh5 {[%emt 0:00:09]} Nf8
{[%emt 0:00:01]} 35. Qh4 {[%emt 0:00:04]} Bxh5 {[%emt 0:00:05]} 36. Qxh5 {
[%emt 0:00:01]} Qc7 {[%emt 0:00:15]} 37. Ng4 {[%emt 0:00:06]} Ng6 {[%emt 0:00:
42]} 38. Qxh7+ Kf8 39. Nf6 {[%emt 0:00:10]} gxf6 {[%emt 0:00:03]} 40. gxf6 {
[%emt 0:00:01]} Ke8 {[%emt 0:00:13]} 41. Qg8+ {[%emt 0:00:00]} Kd7 {[%emt 0:00:
04]} 42. Qxf7+ Kc6 43. Qxg6 {[%emt 0:00:06]} Kb6 {[%emt 0:00:02]} 44. f7 {
[%emt 0:00:01]} Qe7 {[%emt 0:00:09]} 45. Rh8 {[%emt 0:00:04]} 1-0

[Event "GER-ch Blitz 2019"]
[Site "Magdeburg"]
[Date "2019.05.25"]
[Round "24.7"]
[White "Heistermann, Till"]
[Black "Schmaltz, Roland"]
[Result "0-1"]
[ECO "A15"]
[WhiteElo "2181"]
[BlackElo "2461"]
[Annotator "ChessBase"]
[PlyCount "65"]
[EventDate "2019.05.25"]
[EventType "tourn"]
[EventCountry "GER"]
[Tiebreak "Number of wins+Number of black wins"]
[SourceTitle "playchess.com"]
[Source "ChessBase"]
[SourceQuality "1"]
[TimeControl "180+2"]

1. c4 {[%emt 0:00:00]} Nf6 {[%emt 0:00:00]} 2. g3 {[%emt 0:00:00]} g6 {[%emt 0:
00:00]} 3. Bg2 {[%emt 0:00:00]} Bg7 {[%emt 0:00:00]} 4. Nc3 {[%emt 0:00:01]}
O-O {[%emt 0:00:01]} 5. e4 {[%emt 0:00:01]} c5 {[%emt 0:00:01]} 6. Nge2 {
[%emt 0:00:02]} Nc6 {[%emt 0:00:01]} 7. d3 {[%emt 0:00:01]} Ne8 {[%emt 0:00:01]
} 8. Be3 {[%emt 0:00:01]} Nd4 {[%emt 0:00:02]} 9. O-O {[%emt 0:00:04]} Nc7 {
[%emt 0:00:01]} 10. a3 {[%emt 0:00:02]} d6 {[%emt 0:00:10]} 11. Rb1 {[%emt 0:
00:01]} b6 {[%emt 0:00:07]} 12. b4 {[%emt 0:00:02]} Bb7 {[%emt 0:00:03]} 13.
Qd2 {[%emt 0:00:10]} e6 {[%emt 0:00:22]} 14. Bh6 {[%emt 0:00:21]} Rb8 {[%emt 0:
00:07]} 15. Nxd4 {[%emt 0:00:04]} cxd4 {[%emt 0:00:01]} 16. Ne2 {[%emt 0:00:03]
} e5 {[%emt 0:00:03]} 17. Bxg7 {[%emt 0:00:16]} Kxg7 {[%emt 0:00:01]} 18. f4 {
[%emt 0:00:01]} f5 {[%emt 0:00:10]} 19. exf5 {[%emt 0:00:24]} gxf5 {[%emt 0:00:
01]} 20. Bxb7 {[%emt 0:00:12]} Rxb7 {[%emt 0:00:01]} 21. Rf2 {[%emt 0:00:17]}
Ne6 {[%emt 0:00:03]} 22. Rbf1 {[%emt 0:00:07]} Rbf7 {[%emt 0:00:02]} 23. a4 {
[%emt 0:00:36]} Qd7 {[%emt 0:00:03]} 24. a5 {[%emt 0:00:03]} bxa5 {[%emt 0:00:
02]} 25. bxa5 {[%emt 0:00:01]} Kh8 {[%emt 0:00:10]} 26. fxe5 {[%emt 0:00:11]}
dxe5 {[%emt 0:00:02]} 27. Qh6 {[%emt 0:00:01]} Rf6 {[%emt 0:00:12]} 28. Qh3 {
[%emt 0:00:13]} Nc5 {[%emt 0:00:14]} 29. Nc1 {[%emt 0:00:01]} e4 {[%emt 0:00:
09]} 30. dxe4 {[%emt 0:00:13]} Nxe4 {[%emt 0:00:01]} 31. Rf4 {[%emt 0:00:04]}
Qe6 {[%emt 0:00:12]} 32. Nd3 {[%emt 0:00:24]} Ng5 {[%emt 0:00:12]} 33. Qh5 {
[%emt 0:00:00]} 0-1

[Event "GER-ch Blitz 2019"]
[Site "Magdeburg"]
[Date "2019.05.25"]
[Round "24.8"]
[White "Kopylov, Daniel"]
[Black "Braeuning, Rudolf Wilhelm"]
[Result "1-0"]
[ECO "B34"]
[WhiteElo "2263"]
[BlackElo "2285"]
[Annotator "NA"]
[PlyCount "85"]
[EventDate "2019.05.25"]
[EventType "tourn"]
[EventCountry "GER"]
[Tiebreak "Number of wins+Number of black wins"]
[SourceTitle "playchess.com"]
[Source "ChessBase"]
[SourceQuality "1"]
[TimeControl "180+2"]

1. e4 {[%emt 0:00:00]} c5 {[%emt 0:00:00]} 2. Nf3 {[%emt 0:00:00]} g6 {[%emt 0:
00:01]} 3. d4 {[%emt 0:00:03]} cxd4 {[%emt 0:00:00]} 4. Nxd4 {[%emt 0:00:01]}
Nc6 {[%emt 0:00:01]} 5. Nc3 {[%emt 0:00:02]} Bg7 {[%emt 0:00:01]} 6. Be3 {
[%emt 0:00:00]} Nf6 {[%emt 0:00:01]} 7. Nxc6 {[%emt 0:00:01]} bxc6 {[%emt 0:00:
04]} 8. e5 {[%emt 0:00:01]} Ng8 {[%emt 0:00:02]} 9. Bd4 {[%emt 0:00:01]} Nh6 {
[%emt 0:00:25]} 10. e6 {[%emt 0:00:01]} O-O {[%emt 0:00:06]} 11. Bxg7 {[%emt 0:
00:04]} Kxg7 {[%emt 0:00:01]} 12. exd7 {[%emt 0:00:01]} Qxd7 {[%emt 0:00:03]}
13. Qxd7 {[%emt 0:00:02]} Bxd7 {[%emt 0:00:01]} 14. O-O-O {[%emt 0:00:02]} Rfd8
{[%emt 0:00:32]} 15. Ne4 {[%emt 0:00:08]} Bf5 {[%emt 0:00:08]} 16. Bd3 {
[%emt 0:00:29]} Ng4 {[%emt 0:00:05]} 17. f3 {[%emt 0:00:10]} Bxe4 {[%emt 0:00:
26]} 18. Bxe4 {[%emt 0:00:14]} Ne3 {[%emt 0:00:33]} 19. Rxd8 {[%emt 0:00:28]}
Rxd8 {[%emt 0:00:01]} 20. Bxc6 {[%emt 0:00:02]} Nxg2 {[%emt 0:00:13]} 21. Rd1 {
[%emt 0:00:03]} Rxd1+ {[%emt 0:00:11]} 22. Kxd1 {[%emt 0:00:01]} Kf6 {[%emt 0:
00:01]} 23. Kd2 {[%emt 0:00:18]} Ke5 {[%emt 0:00:03]} 24. b4 {[%emt 0:00:02]}
Kd6 {[%emt 0:00:12]} 25. Be8 {[%emt 0:00:07]} f5 {[%emt 0:00:04]} 26. c4 {
[%emt 0:00:01]} e5 {[%emt 0:00:08]} 27. c5+ {[%emt 0:00:01]} Kd5 {[%emt 0:00:
04]} 28. Bf7+ {[%emt 0:00:33]} Kc6 {[%emt 0:00:02]} 29. a4 {[%emt 0:00:11]} a5
{[%emt 0:00:05]} 30. Be8+ {[%emt 0:00:10]} Kb7 {[%emt 0:00:12]} 31. bxa5 {
[%emt 0:00:18]} Nh4 {[%emt 0:00:03]} 32. Ke3 {[%emt 0:00:14]} Ng2+ {[%emt 0:00:
04]} 33. Kd3 {[%emt 0:00:03]} Nf4+ {[%emt 0:00:01]} 34. Kc4 {[%emt 0:00:00]} e4
{[%emt 0:00:01]} 35. fxe4 {[%emt 0:00:06]} fxe4 {[%emt 0:00:00]} 36. Kd4 {
[%emt 0:00:01]} Ne6+ {[%emt 0:00:02]} 37. Kxe4 {[%emt 0:00:09]} Nxc5+ {[%emt 0:
00:01]} 38. Ke5 {[%emt 0:00:01]} Nb3 {[%emt 0:00:01]} 39. Kf6 {[%emt 0:00:01]}
Nxa5 {[%emt 0:00:01]} 40. Kg7 {[%emt 0:00:01]} Nc4 {[%emt 0:00:05]} 41. Kxh7 {
[%emt 0:00:01]} Ne5 {[%emt 0:00:02]} 42. Bxg6 {[%emt 0:00:03]} Nf3 {[%emt 0:00:
03]} 43. Be4+ {[%emt 0:00:04]} 1-0

[Event "GER-ch Blitz 2019"]
[Site "Magdeburg"]
[Date "2019.05.25"]
[Round "24.9"]
[White "Voege, Tobias"]
[Black "Zelbel, Patrick"]
[Result "1-0"]
[ECO "A67"]
[WhiteElo "2294"]
[BlackElo "2439"]
[Annotator "NA"]
[PlyCount "71"]
[EventDate "2019.05.25"]
[EventType "tourn"]
[EventCountry "GER"]
[Tiebreak "Number of wins+Number of black wins"]
[SourceTitle "playchess.com"]
[Source "ChessBase"]
[SourceQuality "1"]
[TimeControl "180+2"]

1. d4 {[%emt 0:00:00]} Nf6 {[%emt 0:00:00]} 2. c4 e6 3. Nc3 {[%emt 0:00:03]} c5
{[%emt 0:00:00]} 4. d5 exd5 5. cxd5 {[%emt 0:00:02]} d6 {[%emt 0:00:00]} 6. e4
{[%emt 0:00:01]} g6 {[%emt 0:00:01]} 7. f4 {[%emt 0:00:01]} Bg7 {[%emt 0:00:03]
} 8. Bb5+ {[%emt 0:00:01]} Nfd7 {[%emt 0:00:02]} 9. a4 {[%emt 0:00:01]} Qh4+ {
[%emt 0:00:02]} 10. g3 {[%emt 0:00:02]} Qd8 {[%emt 0:00:01]} 11. Nf3 {[%emt 0:
00:03]} O-O {[%emt 0:00:02]} 12. O-O {[%emt 0:00:03]} Na6 {[%emt 0:00:02]} 13.
Re1 {[%emt 0:00:05]} Nb4 {[%emt 0:00:27]} 14. e5 {[%emt 0:00:29]} dxe5 {
[%emt 0:00:01]} 15. fxe5 {[%emt 0:00:00]} Nb6 {[%emt 0:00:06]} 16. d6 {[%emt 0:
00:34]} a6 {[%emt 0:00:42]} 17. Be2 {[%emt 0:01:02]} Bf5 {[%emt 0:00:07]} 18.
Bg5 {[%emt 0:00:28]} f6 {[%emt 0:00:26]} 19. Bf4 {[%emt 0:00:19]} fxe5 {
[%emt 0:00:14]} 20. Nxe5 {[%emt 0:00:08]} Nc2 {[%emt 0:00:04]} 21. a5 {[%emt 0:
00:05]} Nd7 {[%emt 0:00:45]} 22. Bc4+ {[%emt 0:00:05]} Kh8 {[%emt 0:00:00]} 23.
Nf7+ {[%emt 0:00:04]} Rxf7 {[%emt 0:00:00]} 24. Bxf7 {[%emt 0:00:01]} Nxe1 {
[%emt 0:00:01]} 25. Qxe1 {[%emt 0:00:01]} Qf6 {[%emt 0:00:02]} 26. Qe7 {
[%emt 0:00:04]} Qd4+ {[%emt 0:00:03]} 27. Be3 {[%emt 0:00:02]} Qxe3+ {[%emt 0:
00:16]} 28. Qxe3 {[%emt 0:00:02]} Bd4 {[%emt 0:00:01]} 29. Qxd4+ {[%emt 0:00:
03]} cxd4 30. Ne2 {[%emt 0:00:05]} Kg7 {[%emt 0:00:04]} 31. Bd5 {[%emt 0:00:02]
} d3 {[%emt 0:00:01]} 32. Nf4 {[%emt 0:00:01]} Nc5 {[%emt 0:00:04]} 33. b4 {
[%emt 0:00:02]} Ne4 {[%emt 0:00:05]} 34. Bxb7 {[%emt 0:00:02]} Rd8 {[%emt 0:00:
01]} 35. Bxe4 {[%emt 0:00:02]} Bxe4 {[%emt 0:00:01]} 36. Ne6+ {[%emt 0:00:01]}
1-0

[Event "GER-ch Blitz 2019"]
[Site "Magdeburg"]
[Date "2019.05.25"]
[Round "24.10"]
[White "Schulze, Marc"]
[Black "Feuerstack, Aljoscha"]
[Result "1-0"]
[ECO "D02"]
[WhiteElo "2220"]
[BlackElo "2441"]
[Annotator "NA"]
[PlyCount "115"]
[EventDate "2019.05.25"]
[EventType "tourn"]
[EventCountry "GER"]
[Tiebreak "Number of wins+Number of black wins"]
[SourceTitle "playchess.com"]
[Source "ChessBase"]
[SourceQuality "1"]
[TimeControl "180+2"]

1. d4 {[%emt 0:00:00]} Nf6 {[%emt 0:00:00]} 2. Bf4 {[%emt 0:00:01]} d5 {
[%emt 0:00:03]} 3. Nf3 {[%emt 0:00:01]} c5 {[%emt 0:00:00]} 4. e3 {[%emt 0:00:
01]} Nc6 {[%emt 0:00:01]} 5. c3 {[%emt 0:00:01]} Qb6 {[%emt 0:00:02]} 6. Qb3 {
[%emt 0:00:01]} c4 {[%emt 0:00:01]} 7. Qc2 {[%emt 0:00:00]} Bf5 {[%emt 0:00:01]
} 8. Qc1 {[%emt 0:00:01]} Nh5 {[%emt 0:00:03]} 9. Bg3 {[%emt 0:00:02]} f6 {
[%emt 0:00:02]} 10. Nbd2 {[%emt 0:00:02]} e5 {[%emt 0:00:11]} 11. dxe5 {
[%emt 0:00:06]} Nxg3 {[%emt 0:00:02]} 12. hxg3 {[%emt 0:00:02]} Nxe5 {[%emt 0:
00:01]} 13. Nxe5 {[%emt 0:00:08]} fxe5 {[%emt 0:00:01]} 14. e4 {[%emt 0:00:01]}
Bg6 {[%emt 0:00:22]} 15. exd5 {[%emt 0:00:23]} Bc5 {[%emt 0:00:01]} 16. Nxc4 {
[%emt 0:00:01]} Bxf2+ {[%emt 0:00:02]} 17. Kd1 {[%emt 0:00:03]} Qc5 {[%emt 0:
00:09]} 18. Qd2 {[%emt 0:00:23]} O-O {[%emt 0:00:34]} 19. b4 {[%emt 0:00:09]}
Qe7 {[%emt 0:00:15]} 20. Bd3 {[%emt 0:00:02]} e4 {[%emt 0:00:04]} 21. Bc2 {
[%emt 0:00:09]} Rad8 {[%emt 0:00:33]} 22. Ne3 {[%emt 0:00:11]} Qg5 {[%emt 0:00:
11]} 23. Re1 {[%emt 0:00:24]} Bxe3 {[%emt 0:00:26]} 24. Qxe3 {[%emt 0:00:04]}
Qxe3 {[%emt 0:00:03]} 25. Rxe3 {[%emt 0:00:01]} Rf1+ {[%emt 0:00:13]} 26. Re1 {
[%emt 0:00:01]} Bh5+ {[%emt 0:00:08]} 27. Kd2 {[%emt 0:00:06]} Rf2+ {[%emt 0:
00:12]} 28. Kc1 {[%emt 0:00:00]} Bg6 {[%emt 0:00:02]} 29. c4 {[%emt 0:00:15]}
Kf8 {[%emt 0:00:01]} 30. Kb2 {[%emt 0:00:05]} e3 {[%emt 0:00:02]} 31. Rf1 {
[%emt 0:00:00]} Ke7 {[%emt 0:00:02]} 32. Rxf2 {[%emt 0:00:03]} exf2 {[%emt 0:
00:00]} 33. Bxg6 {[%emt 0:00:02]} hxg6 {[%emt 0:00:02]} 34. Rf1 {[%emt 0:00:01]
} Rf8 {[%emt 0:00:01]} 35. Kc3 {[%emt 0:00:00]} b6 {[%emt 0:00:01]} 36. Kd4 {
[%emt 0:00:02]} Kd7 {[%emt 0:00:03]} 37. Ke3 {[%emt 0:00:05]} Rc8 {[%emt 0:00:
02]} 38. Kd4 {[%emt 0:00:02]} Rf8 39. c5 bxc5+ {[%emt 0:00:01]} 40. bxc5 {
[%emt 0:00:01]} Kc7 {[%emt 0:00:01]} 41. Ke3 {[%emt 0:00:01]} Rf5 {[%emt 0:00:
02]} 42. Rxf2 {[%emt 0:00:07]} Rxd5 {[%emt 0:00:02]} 43. Rf7+ {[%emt 0:00:00]}
Kc6 {[%emt 0:00:02]} 44. Rxa7 Rxc5 {[%emt 0:00:02]} 45. Rxg7 {[%emt 0:00:04]}
Rg5 {[%emt 0:00:03]} 46. Kf4 {[%emt 0:00:01]} Rf5+ {[%emt 0:00:01]} 47. Kg4 {
[%emt 0:00:00]} Rf2 {[%emt 0:00:05]} 48. Rxg6+ {[%emt 0:00:02]} Kc5 {[%emt 0:
00:02]} 49. Kh3 {[%emt 0:00:00]} Rxa2 {[%emt 0:00:01]} 50. Rf6 {[%emt 0:00:01]}
Kd5 {[%emt 0:00:00]} 51. g4 {[%emt 0:00:01]} Ke5 {[%emt 0:00:05]} 52. Rf3 {
[%emt 0:00:01]} Rb2 {[%emt 0:00:07]} 53. g5 {[%emt 0:00:01]} Rb4 {[%emt 0:00:
01]} 54. g3 {[%emt 0:00:05]} Rc4 {[%emt 0:00:01]} 55. g4 {[%emt 0:00:05]} Ke6 {
[%emt 0:00:02]} 56. g6 {[%emt 0:00:03]} Rc8 {[%emt 0:00:03]} 57. Kh4 {[%emt 0:
00:01]} Ke7 {[%emt 0:00:05]} 58. Kg5 {[%emt 0:00:03]} 1-0

[Event "GER-ch Blitz 2019"]
[Site "Magdeburg"]
[Date "2019.05.25"]
[Round "24.11"]
[White "Wichmann, Cliff"]
[Black "Svane, Frederik"]
[Result "0-1"]
[ECO "E15"]
[WhiteElo "2280"]
[BlackElo "2342"]
[Annotator "NA"]
[PlyCount "79"]
[EventDate "2019.05.25"]
[EventType "tourn"]
[EventCountry "GER"]
[Tiebreak "Number of wins+Number of black wins"]
[SourceTitle "playchess.com"]
[Source "ChessBase"]
[SourceQuality "1"]
[TimeControl "180+2"]

1. d4 {[%emt 0:00:00]} Nf6 {[%emt 0:00:00]} 2. c4 {[%emt 0:00:00]} e6 {[%emt 0:
00:00]} 3. Nf3 {[%emt 0:00:01]} b6 {[%emt 0:00:02]} 4. g3 {[%emt 0:00:01]} Ba6
{[%emt 0:00:00]} 5. Nbd2 {[%emt 0:00:01]} c5 {[%emt 0:00:07]} 6. Bg2 {[%emt 0:
00:02]} Nc6 {[%emt 0:00:06]} 7. d5 {[%emt 0:00:19]} exd5 {[%emt 0:00:01]} 8.
cxd5 {[%emt 0:00:01]} Nxd5 {[%emt 0:00:02]} 9. O-O {[%emt 0:00:01]} Be7 {
[%emt 0:00:06]} 10. a3 {[%emt 0:00:14]} O-O {[%emt 0:00:09]} 11. Re1 {[%emt 0:
00:11]} Nc7 {[%emt 0:00:02]} 12. e4 {[%emt 0:00:07]} d5 {[%emt 0:00:10]} 13.
exd5 {[%emt 0:00:03]} Nxd5 {[%emt 0:00:01]} 14. Qc2 {[%emt 0:00:12]} Bb7 {
[%emt 0:00:10]} 15. Nc4 {[%emt 0:00:10]} b5 {[%emt 0:00:35]} 16. Nce5 {[%emt 0:
00:02]} Nf6 {[%emt 0:00:38]} 17. Bf4 {[%emt 0:00:02]} Nxe5 {[%emt 0:00:03]} 18.
Bxe5 {[%emt 0:00:02]} h6 {[%emt 0:00:47]} 19. Rad1 {[%emt 0:00:06]} Qb6 {
[%emt 0:00:03]} 20. Bc3 {[%emt 0:00:41]} Rfe8 {[%emt 0:00:01]} 21. Ne5 {
[%emt 0:00:22]} Bxg2 {[%emt 0:00:02]} 22. Kxg2 {[%emt 0:00:01]} Qb7+ {[%emt 0:
00:05]} 23. f3 {[%emt 0:00:02]} c4 {[%emt 0:00:19]} 24. Qf5 {[%emt 0:00:03]}
Rad8 {[%emt 0:00:04]} 25. Ba5 {[%emt 0:00:11]} Rxd1 {[%emt 0:00:02]} 26. Rxd1 {
[%emt 0:00:01]} Bf8 {[%emt 0:00:11]} 27. Bc3 {[%emt 0:00:03]} Qc8 {[%emt 0:00:
03]} 28. Qc2 Qe6 29. Re1 {[%emt 0:00:16]} Nd5 {[%emt 0:00:03]} 30. Ng4 {
[%emt 0:00:06]} Qd7 {[%emt 0:00:03]} 31. Rxe8 Qxe8 32. Bd4 {[%emt 0:00:07]} h5
{[%emt 0:00:02]} 33. Nf2 {[%emt 0:00:05]} Ne3+ {[%emt 0:00:03]} 34. Bxe3 {
[%emt 0:00:01]} Qxe3 {[%emt 0:00:01]} 35. Qf5 {[%emt 0:00:03]} Qc5 {[%emt 0:00:
02]} 36. Qd7 {[%emt 0:00:03]} g6 {[%emt 0:00:04]} 37. Ne4 {[%emt 0:00:00]} Qe5
{[%emt 0:00:00]} 38. Qxa7 {[%emt 0:00:07]} Qxb2+ {[%emt 0:00:01]} 39. Kh3 {
[%emt 0:00:01]} Bxa3 {[%emt 0:00:02]} 40. Qc7 {[%emt 0:00:20]} 0-1